bitfinex/quotes_SOLUSD_20230104
["timestamp","ask_amount","ask_price","bid_price","bid_amount"]
[1672805406409,44.90377887,13.426,13.423,30.0]
[1672805406410,0.00404003,13.426,13.423,30.0]
[1672805406616,55.85,13.441,13.424,60.0]
[1672805406819,55.85,13.441,13.426,30.0]
[1672805407242,20.0,13.44,13.424,60.0]
[1672805407454,55.86,13.439,13.424,60.0]
[1672805407870,55.85,13.441,13.424,60.0]
[1672805409020,20.0,13.44,13.424,30.0]
[1672805409229,36.23295693,13.437,13.424,30.0]
[1672805409440,36.23295693,13.435,13.423,117.126]
[1672805409666,36.23295693,13.433,13.423,117.126]
[1672805409875,36.23295693,13.433,13.414,30.0]
[1672805409876,75.89,13.432,13.414,30.0]
[1672805411344,75.89,13.432,13.413,22.85719535]
[1672805411955,112.12295693,13.432,13.413,22.85719535]
[1672805412171,112.12295693,13.432,13.414,115.8242]
[1672805412720,44.51766136,13.431,13.414,115.8242]
[1672805412902,75.9,13.43,13.414,115.8242]
[1672805413323,75.9,13.43,13.415,30.0]
[1672805413762,20.0,13.43,13.415,30.0]
[1672805413993,20.0,13.435,13.415,30.0]
[1672805414291,55.88,13.434,13.415,30.0]
[1672805414606,20.0,13.433,13.415,30.0]
[1672805414816,55.89,13.432,13.415,30.0]
[1672805415011,20.0,13.431,13.415,30.0]
[1672805415536,20.0,13.431,13.414,115.8242]
[1672805415752,20.0,13.431,13.413,22.85719535]
[1672805415753,36.23295693,13.426,13.413,22.85719535]
[1672805415954,53.42,13.425,13.413,22.85719535]
[1672805416164,30.0,13.423,13.413,22.85719535]
[1672805416374,75.93,13.422,13.413,22.85719535]
[1672805416795,47.35894418,13.421,13.413,22.85719535]
[1672805417006,105.94,13.42,13.413,22.85719535]
[1672805417432,41.34770569,13.419,13.413,22.85719535]
[1672805417659,55.95,13.418,13.413,22.85719535]
[1672805418078,55.93,13.422,13.413,22.85719535]
[1672805418283,47.29428218,13.421,13.413,22.85719535]
[1672805418499,55.94,13.42,13.413,22.85719535]
[1672805418721,55.94,13.42,13.401,114.228]
[1672805418722,4.23075061,13.408,13.401,114.228]
[1672805418925,4.23075061,13.408,13.38,17.3162985]
[1672805418926,55.99,13.407,13.382,30.0]
[1672805419140,4.23075061,13.408,13.389,170.205]
[1672805419346,4.23075061,13.408,13.39,30.0]
[1672805420699,4.23075061,13.408,13.389,170.205]
[1672805421121,4.23075061,13.408,13.39,30.0]
[1672805421871,4.23075061,13.408,13.392,30.0]
[1672805422274,4.23075061,13.408,13.39,30.0]
[1672805422485,4.23075061,13.408,13.392,30.0]
[1672805423139,4.23075061,13.408,13.39,30.0]
[1672805423658,4.23075061,13.408,13.389,170.205]
[1672805423860,4.23075061,13.408,13.389,114.135]
[1672805423861,55.99,13.407,13.389,114.135]
[1672805424068,20.0,13.406,13.389,114.135]
[1672805424282,56.0,13.405,13.389,114.135]
[1672805424493,20.0,13.404,13.389,114.135]
[1672805425019,56.01,13.403,13.389,114.135]
[1672805425345,20.0,13.402,13.389,114.135]
[1672805425652,60.8929264,13.402,13.389,114.135]
[1672805426078,96.9129264,13.401,13.389,114.135]
[1672805426290,20.0,13.4,13.389,114.135]
[1672805426598,56.03,13.399,13.389,114.135]
[1672805426813,96.9229264,13.399,13.389,114.135]
[1672805427131,40.8929264,13.398,13.389,114.135]
[1672805428081,88.18720858,13.398,13.389,114.135]
[1672805428714,40.8929264,13.398,13.389,114.135]
[1672805428905,40.8929264,13.397,13.389,114.135]
[1672805429541,40.8929264,13.397,13.381,30.0]
[1672805429755,56.03,13.399,13.381,30.0]
[1672805430073,40.8929264,13.398,13.383,30.0]
[1672805430916,20.0,13.4,13.383,30.0]
[1672805431139,4.23075061,13.408,13.389,30.0]
[1672805431318,4.23075061,13.408,13.389,138.3502]
[1672805431528,55.99,13.407,13.389,138.3502]
[1672805431753,20.0,13.406,13.389,138.3502]
[1672805432070,20.0,13.406,13.389,108.3502]
[1672805432279,56.0,13.405,13.389,108.3502]
[1672805432601,20.0,13.404,13.39,30.0]
[1672805432802,20.0,13.404,13.389,108.3502]
[1672805432998,96.9029264,13.403,13.389,108.3502]
[1672805433943,40.8929264,13.402,13.389,108.3502]
[1672805434278,20.0,13.401,13.389,108.3502]
[1672805434900,76.0,13.405,13.389,108.3502]
[1672805435310,40.8929264,13.401,13.389,108.3502]
[1672805435520,20.0,13.4,13.389,108.3502]
[1672805436694,45.22625973,13.402,13.389,108.3502]
[1672805437024,20.0,13.401,13.389,108.3502]
[1672805437629,20.0,13.403,13.389,108.3502]
[1672805438164,65.22625973,13.403,13.389,108.3502]
[1672805438368,101.23625973,13.402,13.389,108.3502]
[1672805438583,20.0,13.401,13.389,108.3502]
[1672805440587,20.0,13.401,13.39,30.0]
[1672805441327,65.22625973,13.401,13.389,108.3502]
[1672805442381,65.22625973,13.401,13.39,30.0]
[1672805442785,4.23075061,13.408,13.392,56.05]
[1672805442996,4.23075061,13.408,13.393,30.0]
[1672805443422,52.92367701,13.408,13.395,30.0]
[1672805443649,52.92367701,13.408,13.396,56.04]
[1672805443841,52.92367701,13.408,13.397,30.0]
[1672805444052,4.23075061,13.408,13.397,30.0]
[1672805444469,4.23075061,13.408,13.398,39.38388588]
[1672805444689,4.23075061,13.408,13.399,30.0]
[1672805445330,55.94,13.419,13.401,30.0]
[1672805445522,20.0,13.42,13.402,56.01]
[1672805445728,55.93,13.423,13.403,30.0]
[1672805445945,55.93,13.423,13.405,30.0]
[1672805446155,55.93,13.423,13.406,56.0]
[1672805446368,55.91,13.426,13.407,30.0]
[1672805446695,52.78359307,13.425,13.407,145.4594]
[1672805446910,55.92,13.424,13.407,145.4594]
[1672805447311,20.0,13.423,13.407,145.4594]
[1672805447661,55.93,13.422,13.407,145.4594]
[1672805447830,20.0,13.421,13.407,145.4594]
[1672805448251,85.4664485,13.443,13.407,145.4594]
[1672805448581,85.4664485,13.443,13.408,75.99]
[1672805448582,17.56188342,13.432,13.408,75.99]
[1672805448774,74.08317166,13.429,13.409,30.0]
[1672805448984,105.91290112,13.426,13.407,145.4594]
[1672805449203,30.0,13.424,13.407,145.4594]
[1672805449415,55.93,13.423,13.407,115.4594]
[1672805449615,20.0,13.422,13.407,115.4594]
[1672805449825,55.93,13.421,13.407,115.4594]
[1672805450039,20.0,13.42,13.407,115.4594]
[1672805450254,55.94,13.419,13.407,115.4594]
[1672805450469,73.50188342,13.419,13.407,115.4594]
[1672805450683,80.47744841,13.418,13.407,115.4594]
[1672805450880,55.95,13.417,13.398,56.03]
[1672805451085,20.0,13.416,13.398,117.0976]
[1672805451298,55.96,13.415,13.398,117.0976]
[1672805451619,20.0,13.414,13.398,117.0976]
[1672805452029,50.87738282,13.414,13.398,117.0976]
[1672805452249,30.87738282,13.413,13.398,117.0976]
[1672805452563,20.0,13.412,13.398,117.0976]
[1672805454242,75.95,13.416,13.398,117.0976]
[1672805454682,75.95,13.416,13.399,30.0]
[1672805454880,18.03531378,13.415,13.398,117.0976]
[1672805455098,75.96,13.414,13.398,117.0976]
[1672805455306,128.74359307,13.414,13.398,117.0976]
[1672805455517,70.81890685,13.413,13.398,117.0976]
[1672805455730,75.97,13.412,13.398,117.0976]
[1672805455939,90.81890685,13.412,13.398,117.0976]
[1672805456154,70.81890685,13.411,13.398,117.0976]
[1672805456358,20.0,13.41,13.399,30.0]
[1672805456575,90.81890685,13.41,13.399,30.0]
[1672805456772,52.78359307,13.409,13.398,117.0976]
[1672805456976,70.81890685,13.409,13.398,117.0976]
[1672805457188,18.03531378,13.408,13.398,117.0976]
[1672805457405,116.99477244,13.408,13.398,117.0976]
[1672805457624,49.35939307,13.407,13.398,117.0976]
[1672805458033,91.62250159,13.407,13.393,30.0]
[1672805458248,49.35939307,13.407,13.393,30.0]
[1672805458460,91.62250159,13.406,13.393,30.0]
[1672805458658,91.62250159,13.406,13.395,30.0]
[1672805458874,49.35939307,13.405,13.395,30.0]
[1672805459084,91.62250159,13.405,13.395,30.0]
[1672805459289,49.35939307,13.405,13.392,168.0421]
[1672805459511,143.39470685,13.404,13.392,111.9921]
[1672805459833,67.39470685,13.403,13.392,111.9921]
[1672805460026,20.0,13.402,13.392,111.9921]
[1672805460354,87.39470685,13.402,13.392,111.9921]
[1672805460567,49.35939307,13.401,13.392,111.9921]
[1672805460775,20.0,13.4,13.392,111.9921]
[1672805460988,20.0,13.4,13.389,30.0]
[1672805461196,69.35939307,13.4,13.389,30.0]
[1672805461602,20.0,13.4,13.389,30.0]
[1672805461921,20.0,13.403,13.389,30.0]
[1672805462343,69.35939307,13.403,13.389,30.0]
[1672805462557,49.35939307,13.402,13.389,30.0]
[1672805462757,20.0,13.401,13.389,30.0]
[1672805463721,55.98,13.411,13.392,30.0]
[1672805464035,20.0,13.41,13.392,140.2425]
[1672805464238,55.98,13.409,13.392,140.2425]
[1672805464657,49.35185307,13.408,13.394,30.0]
[1672805465087,104.31658532,13.408,13.394,30.0]
[1672805465403,49.35185307,13.407,13.394,30.0]
[1672805465808,18.03531378,13.411,13.394,30.0]
[1672805466019,54.96473225,13.406,13.394,30.0]
[1672805466546,54.96473225,13.406,13.395,56.04]
[1672805466758,54.96473225,13.406,13.394,30.0]
[1672805468764,42.3179864,13.41,13.396,30.0]
[1672805468958,42.3179864,13.41,13.397,56.03]
[1672805469167,112.9234,13.413,13.396,30.0]
[1672805469378,42.3179864,13.413,13.397,20.0]
[1672805469603,55.94,13.419,13.399,30.0]
[1672805469811,65.93497937,13.418,13.4,114.4914]
[1672805470128,55.95,13.417,13.401,30.0]
[1672805470331,164.20296577,13.417,13.401,30.0]
[1672805470541,60.35330018,13.416,13.4,114.4914]
[1672805470756,55.96,13.415,13.4,114.4914]
[1672805470959,20.0,13.414,13.4,114.4914]
[1672805471178,55.97,13.413,13.401,30.0]
[1672805471387,42.3179864,13.414,13.401,30.0]
[1672805472226,47.89966559,13.413,13.401,30.0]
[1672805472544,47.89966559,13.413,13.4,114.4914]
[1672805472764,42.3179864,13.414,13.4,114.4914]
[1672805473066,42.3179864,13.413,13.4,114.4914]
[1672805474948,42.3179864,13.413,13.401,30.0]
[1672805478413,72.03243357,13.427,13.403,30.0]
[1672805478625,72.03243357,13.427,13.404,121.26279079]
[1672805478840,72.03243357,13.427,13.404,98.13152883]
[1672805479048,72.03243357,13.427,13.405,30.0]
[1672805479266,55.91,13.426,13.406,56.0]
[1672805479567,93.11793461,13.426,13.403,86.01]
[1672805479790,55.86971512,13.425,13.403,30.0]
[1672805480001,55.86971512,13.425,13.402,86.01]
[1672805480002,75.92,13.424,13.402,86.01]
[1672805480216,138.67971512,13.424,13.401,56.02]
[1672805480533,138.67971512,13.424,13.397,56.03]
[1672805480534,62.75971512,13.423,13.397,56.03]
[1672805480731,75.93,13.422,13.401,30.0]
[1672805480946,140.65072179,13.422,13.401,86.02]
[1672805481153,46.05894128,13.421,13.401,86.02]
[1672805481366,20.0,13.42,13.401,86.02]
[1672805481988,55.91,13.426,13.401,86.02]
[1672805482314,55.9,13.428,13.407,30.0]
[1672805482528,55.88,13.433,13.408,170.2568]
[1672805482728,55.88,13.433,13.409,30.0]
[1672805482938,55.88,13.433,13.411,30.0]
[1672805483144,112.6693,13.434,13.412,55.97]
[1672805483356,55.88,13.433,13.414,30.0]
[1672805483565,55.88,13.433,13.415,55.96]
[1672805483899,55.88,13.433,13.416,30.0]
[1672805484294,55.88,13.433,13.418,30.0]
[1672805484505,55.86,13.439,13.418,30.0]
[1672805484721,55.84,13.443,13.42,30.0]
[1672805485245,55.84,13.443,13.422,30.0]
[1672805485456,30.0,13.442,13.422,60.0]
[1672805485792,30.0,13.44,13.422,60.0]
[1672805485993,55.86,13.439,13.422,60.0]
[1672805486187,55.86,13.439,13.422,30.0]
[1672805486399,55.86,13.439,13.412,55.97]
[1672805486619,64.72072179,13.426,13.417,30.0]
[1672805486824,55.92,13.425,13.404,115.8374]
[1672805487247,111.444,13.436,13.404,171.8374]
[1672805487248,46.05894128,13.424,13.404,171.8374]
[1672805487580,75.93,13.423,13.404,115.8374]
[1672805487980,31.41320247,13.422,13.404,115.8374]
[1672805488303,75.93,13.421,13.404,115.8374]
[1672805488617,46.05894128,13.42,13.404,115.8374]
[1672805488835,55.94,13.419,13.404,115.8374]
[1672805489359,46.05894128,13.418,13.404,115.8374]
[1672805491130,55.94,13.42,13.404,115.8374]
[1672805491545,55.94,13.42,13.404,115.00693769]
[1672805491972,101.99894128,13.42,13.404,115.00693769]
[1672805493144,30.0,13.419,13.404,115.00693769]
[1672805493347,75.95,13.418,13.393,56.05]
[1672805493666,122.00894128,13.418,13.393,56.05]
[1672805493874,46.05894128,13.417,13.393,56.05]
[1672805494083,75.95,13.416,13.393,56.05]
[1672805494278,75.95,13.416,13.396,30.0]
[1672805494487,55.95,13.416,13.396,30.0]
[1672805494719,46.05894128,13.418,13.398,30.0]
[1672805494921,55.95,13.417,13.4,30.0]
[1672805495137,55.92,13.425,13.4,30.0]
[1672805495346,20.0,13.424,13.4,30.0]
[1672805495554,55.93,13.423,13.4,30.0]
[1672805495765,20.0,13.422,13.401,56.02]
[1672805496088,55.93,13.421,13.401,56.02]
[1672805496302,101.98894128,13.421,13.398,30.0]
[1672805496510,66.05894128,13.42,13.398,30.0]
[1672805496823,101.99894128,13.419,13.398,30.0]
[1672805497015,101.99894128,13.419,13.4,30.0]
[1672805497343,46.05894128,13.418,13.4,30.0]
[1672805497564,55.95,13.417,13.4,30.0]
[1672805497961,46.05894128,13.416,13.4,30.0]
[1672805498600,46.05894128,13.416,13.401,56.02]
[1672805498819,46.05894128,13.416,13.402,30.0]
[1672805499555,55.94,13.419,13.402,29.0]
[1672805500163,101.99894128,13.419,13.402,29.0]
[1672805500396,55.94,13.419,13.4,102.078]
[1672805500604,46.05894128,13.418,13.4,102.078]
[1672805500820,55.95,13.417,13.4,102.078]
[1672805501346,46.05894128,13.416,13.4,102.078]
[1672805501532,55.96,13.415,13.4,102.078]
[1672805501743,46.05894128,13.416,13.4,102.078]
[1672805501953,46.05894128,13.415,13.4,102.078]
[1672805503340,46.05894128,13.415,13.403,30.0]
[1672805504059,46.05894128,13.415,13.403,86.01]
[1672805504388,46.05894128,13.415,13.402,56.01]
[1672805504597,84.44155178,13.415,13.401,30.0]
[1672805505425,84.44155178,13.415,13.4,158.098]
[1672805505856,84.44155178,13.415,13.4,102.078]
[1672805506069,84.44155178,13.415,13.4,72.078]
[1672805506475,30.0,13.413,13.399,110.5657]
[1672805506691,75.97,13.412,13.399,110.5657]
[1672805506907,125.32920795,13.412,13.399,110.5657]
[1672805507120,78.1486813,13.411,13.399,110.5657]
[1672805507333,78.1486813,13.411,13.394,72.8948]
[1672805507334,75.98,13.41,13.394,72.8948]
[1672805507520,125.33920795,13.41,13.395,30.0]
[1672805507749,78.1486813,13.409,13.394,189.3008]
[1672805507964,55.99,13.408,13.394,189.3008]
[1672805508182,105.34920795,13.408,13.394,189.3008]
[1672805508388,49.35920795,13.407,13.394,189.3008]
[1672805508712,56.0,13.406,13.394,189.3008]
[1672805508921,55.99,13.407,13.394,189.3008]
[1672805509110,45.20700795,13.408,13.394,189.3008]
[1672805509323,45.20700795,13.406,13.394,189.3008]
[1672805509550,56.0,13.405,13.394,189.3008]
[1672805509762,56.0,13.405,13.381,56.1]
[1672805509763,20.0,13.404,13.382,30.0]
[1672805509967,56.01,13.403,13.383,56.09]
[1672805510175,20.0,13.402,13.384,30.0]
[1672805510501,56.02,13.401,13.386,30.0]
[1672805510700,20.0,13.4,13.386,30.0]
[1672805510899,56.03,13.399,13.386,30.0]
[1672805511327,44.61767461,13.398,13.386,30.0]
[1672805511550,44.61767461,13.398,13.385,119.6583]
[1672805511762,56.03,13.397,13.388,18.9965648]
[1672805512075,20.0,13.4,13.389,30.0]
[1672805512286,43.53119528,13.403,13.389,30.0]
[1672805512483,76.01,13.402,13.389,30.0]
[1672805513025,119.54119528,13.402,13.389,30.0]
[1672805515741,43.53119528,13.401,13.389,30.0]
[1672805515948,76.02,13.4,13.389,30.0]
[1672805517641,20.0,13.4,13.389,30.0]
[1672805517851,76.02,13.4,13.389,30.0]
[1672805518162,119.55119528,13.4,13.388,18.9965648]
[1672805518384,164.60713911,13.4,13.388,18.9965648]
[1672805519014,119.55119528,13.4,13.388,18.9965648]
[1672805521525,45.06937525,13.399,13.388,18.9965648]
[1672805521864,99.56119528,13.398,13.388,18.9965648]
[1672805522264,43.53119528,13.397,13.388,18.9965648]
[1672805522912,88.58713911,13.397,13.388,18.9965648]
[1672805523222,43.53119528,13.396,13.388,18.9965648]
[1672805524484,88.60057053,13.396,13.388,18.9965648]
[1672805525007,43.53119528,13.395,13.388,18.9965648]
[1672805526458,56.03,13.399,13.388,18.9965648]
[1672805526684,43.53119528,13.397,13.388,18.9965648]
[1672805526880,30.0,13.395,13.388,18.9965648]
[1672805527094,76.05,13.394,13.388,18.9965648]
[1672805527299,178.13590387,13.394,13.388,18.9965648]
[1672805527524,73.53119528,13.393,13.388,18.9965648]
[1672805527734,76.05,13.392,13.388,18.9965648]
[1672805527944,129.59986195,13.392,13.388,18.9965648]
[1672805528139,30.0,13.391,13.388,18.9965648]
[1672805528354,76.06,13.39,13.388,18.9965648]
[1672805528565,165.49950386,13.39,13.388,18.9965648]
[1672805528765,30.0,13.389,13.374,69.6273]
[1672805528980,30.0,13.387,13.374,69.6273]
[1672805529208,56.08,13.386,13.374,69.6273]
[1672805529414,30.0,13.385,13.374,69.6273]
[1672805529822,46.88967297,13.384,13.374,69.6273]
[1672805530159,94.72646825,13.384,13.374,69.6273]
[1672805530381,47.83679528,13.383,13.374,69.6273]
[1672805530577,94.72646825,13.383,13.374,69.6273]
[1672805530898,94.72646825,13.382,13.374,69.6273]
[1672805531408,46.88967297,13.381,13.374,69.6273]
[1672805532049,94.72646825,13.381,13.374,69.6273]
[1672805533425,47.83679528,13.381,13.374,69.6273]
[1672805535405,94.24890025,13.381,13.374,69.6273]
[1672805535629,47.83679528,13.381,13.374,69.6273]
[1672805542252,47.83679528,13.381,13.374,99.6273]
[1672805542468,56.07,13.389,13.374,69.6273]
[1672805542658,46.41210497,13.385,13.375,46.8954]
[1672805542874,55.08992861,13.384,13.375,46.8954]
[1672805543306,101.50203358,13.384,13.375,46.8954]
[1672805543723,55.08992861,13.383,13.375,46.8954]
[1672805544779,101.50203358,13.383,13.375,46.8954]
[1672805545212,55.08992861,13.382,13.375,46.8954]
[1672805545521,73.92992929,13.382,13.364,30.0]
[1672805545732,122.51210497,13.381,13.365,56.17]
[1672805545942,177.60203358,13.381,13.365,246.3945]
[1672805546133,121.50203358,13.381,13.366,30.0]
[1672805546345,177.60203358,13.381,13.366,30.0]
[1672805546554,177.60203358,13.381,13.366,48.1262]
[1672805546774,152.35759256,13.38,13.366,48.1262]
[1672805546990,20.0,13.379,13.366,48.1262]
[1672805547204,120.00128771,13.379,13.37,28.015111]
[1672805547392,53.58918274,13.378,13.37,28.015111]
[1672805548027,53.58918274,13.378,13.366,48.1262]
[1672805548663,20.0,13.379,13.366,48.1262]
[1672805549088,76.11,13.38,13.366,48.1262]
[1672805549290,18.31425972,13.379,13.366,48.1262]
[1672805549499,18.31425972,13.379,13.366,78.114284]
[1672805549711,18.31425972,13.379,13.367,30.0]
[1672805549940,55.27492302,13.38,13.367,30.0]
[1672805550130,20.0,13.38,13.367,86.16]
[1672805550340,20.0,13.382,13.367,86.16]
[1672805550653,20.0,13.382,13.367,56.16]
[1672805550867,105.01784941,13.381,13.366,78.114284]
[1672805551077,20.0,13.38,13.366,78.114284]
[1672805551296,115.32995438,13.38,13.366,78.114284]
[1672805551703,48.91784941,13.379,13.367,30.0]
[1672805551920,48.91784941,13.379,13.366,78.114284]
[1672805552975,95.32995438,13.379,13.366,78.114284]
[1672805553184,20.0,13.38,13.367,30.0]
[1672805553600,76.11,13.38,13.367,30.0]
[1672805553812,76.11,13.38,13.366,76.114284]
[1672805554023,115.32995438,13.38,13.366,76.114284]
[1672805555081,56.11,13.379,13.366,76.114284]
[1672805555613,95.32995438,13.378,13.366,76.114284]
[1672805556146,95.32995438,13.377,13.366,76.114284]
[1672805556550,151.44995438,13.376,13.366,76.114284]
[1672805557080,105.03784941,13.376,13.366,76.114284]
[1672805558356,78.91784941,13.375,13.366,29.988084]
[1672805558550,76.13,13.374,13.366,29.988084]
[1672805558759,30.0,13.373,13.366,29.988084]
[1672805558978,30.0,13.371,13.366,29.988084]
[1672805559184,76.15,13.37,13.366,29.988084]
[1672805559400,94.99000068,13.37,13.352,86.22]
[1672805559729,68.22910565,13.369,13.353,72.0616]
[1672805559913,56.16,13.368,13.362,7.3605484]
[1672805560123,124.38910565,13.368,13.362,7.3605484]
[1672805560355,82.89675438,13.367,13.362,7.3605484]
[1672805560566,56.16,13.366,13.362,7.3605484]
[1672805560881,1.48828294,13.361,13.359,30.01165]
[1672805561090,56.19,13.36,13.359,30.01165]
[1672805561282,194.31368839,13.36,13.359,30.01165]
[1672805561486,175.47368771,13.36,13.359,30.01165]
[1672805562238,194.31368839,13.36,13.359,30.01165]
[1672805562974,175.47368771,13.36,13.359,30.01165]
[1672805563294,125.57910497,13.36,13.359,30.01165]
[1672805563620,1.48828294,13.361,13.359,30.01165]
[1672805570742,1.48828294,13.361,13.36,30.0]
[1672805571179,1.48828294,13.361,13.359,30.01165]
[1672805574862,1.48828294,13.361,13.359,28.35019718]
[1672805578204,1.48828294,13.361,13.356,112.7511]
[1672805578419,1.48828294,13.361,13.354,47.7311]
[1672805581918,56.19,13.36,13.353,30.010453]
[1672805582102,20.0,13.359,13.353,30.010453]
[1672805582640,20.0,13.36,13.353,30.010453]
[1672805583491,56.19,13.359,13.353,30.010453]
[1672805583700,95.0369658,13.36,13.353,30.010453]
[1672805583913,18.8469658,13.358,13.353,30.010453]
[1672805584224,106.2,13.357,13.353,30.010453]
[1672805584420,165.15341608,13.357,13.353,30.010453]
[1672805584856,58.95341608,13.356,13.353,30.010453]
[1672805585177,76.21,13.355,13.353,30.010453]
[1672805585597,88.95341608,13.354,13.353,30.010453]
[1672805585804,60.010453,13.353,13.338,112.3623]
[1672805585992,20.0,13.352,13.338,112.3623]
[1672805586201,56.23,13.351,13.338,112.3623]
[1672805586412,50.0,13.35,13.338,142.416828]
[1672805586636,56.24,13.349,13.338,142.416828]
[1672805586956,115.19341608,13.349,13.338,142.416828]
[1672805587148,68.78153697,13.35,13.338,142.416828]
[1672805587149,20.0,13.35,13.338,189.911128]
[1672805587359,188.2508,13.36,13.345,30.0]
[1672805587570,20.0,13.359,13.339,127.4903]
[1672805587803,69.17264941,13.359,13.339,127.4903]
[1672805588005,49.17264941,13.358,13.339,127.4903]
[1672805588210,49.17264941,13.358,13.34,70.806]
[1672805588414,49.17264941,13.358,13.341,56.27]
[1672805588835,50.15118825,13.357,13.344,71.9881758]
[1672805589048,56.21,13.356,13.344,71.9881758]
[1672805589257,30.0,13.355,13.344,71.9881758]
[1672805589460,30.0,13.353,13.344,71.9881758]
[1672805589677,56.22,13.352,13.344,71.9881758]
[1672805589889,30.0,13.351,13.344,71.9881758]
[1672805590110,76.23,13.35,13.344,71.9881758]
[1672805590319,30.0,13.349,13.344,71.9881758]
[1672805590513,56.24,13.348,13.344,71.9881758]
[1672805590729,106.59340259,13.348,13.344,71.9881758]
[1672805591159,56.24,13.348,13.344,71.9881758]
[1672805591361,77.93232968,13.353,13.344,71.9881758]
[1672805591362,64.81583288,13.347,13.344,71.9881758]
[1672805592003,56.21,13.354,13.344,71.9881758]
[1672805592212,30.0,13.358,13.344,71.9881758]
[1672805592529,56.2,13.357,13.344,71.9881758]
[1672805592718,30.0,13.356,13.344,71.9881758]
[1672805592928,56.21,13.355,13.344,71.9881758]
[1672805593140,30.0,13.356,13.344,71.9881758]
[1672805593350,56.21,13.355,13.344,71.9881758]
[1672805593569,56.2,13.357,13.344,71.9881758]
[1672805593765,19.13178596,13.358,13.344,71.9881758]
[1672805594203,71.2467,13.36,13.344,71.9881758]
[1672805594416,41.63698596,13.36,13.344,71.9881758]
[1672805594629,30.0,13.359,13.344,71.9881758]
[1672805594818,41.00517612,13.359,13.344,71.9881758]
[1672805595029,60.13696208,13.359,13.344,71.9881758]
[1672805595237,30.0,13.357,13.344,71.9881758]
[1672805595460,56.21,13.356,13.344,71.9881758]
[1672805595685,30.0,13.355,13.344,71.9881758]
[1672805595880,76.21,13.354,13.344,71.9881758]
[1672805596081,30.0,13.353,13.344,71.9881758]
[1672805596296,76.22,13.352,13.344,71.9881758]
[1672805596516,30.0,13.351,13.344,71.9881758]
[1672805596717,30.0,13.349,13.344,71.9881758]
[1672805596921,56.24,13.348,13.344,71.9881758]
[1672805597139,75.37178596,13.348,13.344,71.9881758]
[1672805597348,19.13178596,13.347,13.344,71.9881758]
[1672805597553,68.8909347,13.347,13.344,71.9881758]
[1672805597975,30.0,13.349,13.332,30.059168]
[1672805597976,14.29264209,13.343,13.332,30.059168]
[1672805598292,145.1509347,13.342,13.332,30.059168]
[1672805598721,126.01914874,13.342,13.332,30.059168]
[1672805599042,76.26,13.342,13.332,30.059168]
[1672805599240,20.0,13.342,13.332,30.059168]
[1672805599451,76.26,13.342,13.332,30.059168]
[1672805599651,19.13178596,13.341,13.332,30.059168]
[1672805600075,76.27,13.34,13.332,30.059168]
[1672805600723,19.13178596,13.339,13.332,30.059168]
[1672805601137,30.0,13.338,13.332,30.059168]
[1672805601345,129.36581541,13.338,13.332,30.059168]
[1672805601574,189.50277749,13.338,13.332,30.059168]
[1672805601768,133.22277749,13.338,13.337,47.84413379]
[1672805601977,225.73657992,13.338,13.337,47.84413379]
[1672805602392,195.73657992,13.338,13.337,47.84413379]
[1672805602611,14.29264209,13.343,13.337,47.84413379]